[Event "Marshall CC U2400 01-2025"]
[Site "New York"]
[Date "2025.01.18"]
[Round "1.5"]
[White "Levin, Anthony"]
[Black "Solomon, Ciprian"]
[Result "1-0"]
[Annotator "RC"]
[ECO "B06"]
[WhiteElo "1997"]
[BlackElo "1850"]
[PlyCount "44"]
[EventDate "2025.01.17"]
[EventType "swiss"]
[EventCountry "USA"]
[SourceTitle "playchess.com"]
[Source "ChessBase"]
[SourceQuality "1"]
[TimeControl "5400+30"]

1. e4 {[%emt 0:00:06]} g6 {[%emt 0:00:26]} 2. d4 {[%emt 0:00:05]} d6 {[%emt 0:00:14]} 3. Nc3 {[%emt 0:00:18]} Bg7 {[%emt 0:00:21]} 4. Be3 {[%emt 0:00:40]} a6 {[%emt 0:00:13]} 5. Qd2 {[%emt 0:00:22]} Nd7 {[%emt 0:00:25]} 6. O-O-O {[%emt 0:01:32]} b5 {[%emt 0:00:35]} 7. h4 {[%emt 0:00:24]} h6 {[%emt 0:00:09]} 8. Kb1 {[%emt 0:07:51]} Bb7 {[%emt 0:00:17]} 9. f3 {[%emt 0:00:05]} Nb6 {[%emt 0:01:23]} 10. a3 {[%emt 0:03:18]} e6 {[%emt 0:00:14]} 11. g4 {[%emt 0:01:24]} Ne7 {[%emt 0:00:08]} 12. Nh3 {[%emt 0:04:07]} d5 {[%emt 0:03:12]} 13. e5 {[%emt 0:17:19]} Qd7 {[%emt 0:09:20]} 14. Nf2 {[%emt 0:03:51]} Nc4 {[%emt 0:07:30]} 15. Bxc4 {[%emt 0:01:03]} bxc4 {[%emt 0:00:13]} 16. f4 {[%emt 0:01:38]} h5 {[%emt 0:04:13]} 17. f5 {[%emt 0:06:31]} gxf5 {[%emt 0:02:51]} 18. gxh5 {[%emt 0:00:22]} Rh7 {[%emt 1:07:46]} 19. h6 Rxh6 {[%emt 0:00:00]} 20. Ne2 {[%emt 0:01:54]} Rh5 {[%emt 0:00:00]} 21. Bg5 {[%emt 0:00:46]} Ng6 {[%emt 0:00:00]} 22. c3 {[%emt 0:02:27]} c5 {[%emt 0:00:00]} 1-0

[Event "Marshall CC U2400 01-2025"]
[Site "New York"]
[Date "2025.01.18"]
[Round "1.6"]
[White "Menzi, Nezihe Ezgi"]
[Black "Shvarts, Tim"]
[Result "0-1"]
[Annotator "RC"]
[ECO "C95"]
[WhiteElo "1917"]
[BlackElo "1993"]
[PlyCount "94"]
[EventDate "2025.01.17"]
[EventType "swiss"]
[EventCountry "USA"]
[SourceTitle "playchess.com"]
[Source "ChessBase"]
[SourceQuality "1"]
[TimeControl "5400+30"]

1. e4 {[%emt 0:31:22]} e5 {[%emt 0:00:28]} 2. Nf3 {[%emt 0:00:33]} Nc6 {[%emt 0:00:06]} 3. Bb5 {[%emt 0:00:07]} a6 {[%emt 0:00:14]} 4. Ba4 {[%emt 0:00:18]} Nf6 {[%emt 0:00:13]} 5. O-O {[%emt 0:00:15]} Be7 {[%emt 0:00:03]} 6. Re1 {[%emt 0:00:44]} b5 {[%emt 0:00:06]} 7. Bb3 {[%emt 0:00:16]} d6 {[%emt 0:00:05]} 8. c3 {[%emt 0:00:17]} O-O {[%emt 0:00:07]} 9. h3 {[%emt 0:00:32]} Nb8 {[%emt 0:00:21]} 10. d4 {[%emt 0:00:31]} Nbd7 {[%emt 0:00:14]} 11. Nbd2 {[%emt 0:01:15]} Bb7 {[%emt 0:00:08]} 12. d5 {[%emt 0:01:56]} c6 {[%emt 0:05:20]} 13. dxc6 {[%emt 0:01:09]} Bxc6 {[%emt 0:00:06]} 14. Bc2 {[%emt 0:03:31]} Nc5 {[%emt 0:01:46]} 15. Nh2 {[%emt 0:05:22]} Qc8 {[%emt 0:24:01]} 16. Ng4 {[%emt 0:05:58]} Qb7 {[%emt 0:01:18]} 17. Nxf6+ {[%emt 0:01:21]} Bxf6 {[%emt 0:00:07]} 18. Qg4 {[%emt 0:02:09]} g6 {[%emt 0:03:35]} 19. Nf1 {[%emt 0:02:00]} h5 {[%emt 0:02:19]} 20. Qe2 {[%emt 0:00:32]} b4 {[%emt 0:05:29]} 21. Bh6 {[%emt 0:02:57]} Bg7 {[%emt 0:05:20]} 22. Bxg7 {[%emt 0:00:08]} Kxg7 {[%emt 0:00:01]} 23. cxb4 {[%emt 0:05:41]} Qxb4 {[%emt 0:00:24]} 24. Rab1 {[%emt 0:00:57]} Ne6 {[%emt 0:01:06]} 25. Qd2 {[%emt 0:03:18]} Rab8 {[%emt 0:02:07]} 26. a3 {[%emt 0:03:24]} Qxd2 {[%emt 0:04:02]} 27. Nxd2 {[%emt 0:00:05]} Bb5 {[%emt 0:00:54]} 28. a4 {[%emt 0:03:24]} Nd4 {[%emt 0:00:30]} 29. axb5 {[%emt 0:01:45]} Nxc2 {[%emt 0:00:06]} 30. Red1 {[%emt 0:02:09]} Rxb5 {[%emt 0:11:13]} 31. Nc4 {[%emt 0:02:15]} Rb4 {[%emt 0:00:36]} 32. Nxd6 {[%emt 0:01:12]} Rfb8 {[%emt 0:00:05]} 33. Rd5 {[%emt 0:06:32]} Rd4 {[%emt 0:09:35]} 34. b3 {[%emt 0:05:24]} Rb6 {[%emt 0:14:40]} 35. Nc8 {[%emt 0:02:14]} Rc6 {[%emt 0:01:21]} 36. Ne7 {[%emt 0:00:24]} Re6 {[%emt 0:00:57]} 37. Nc8 {[%emt 0:00:57]} Rxe4 {[%emt 0:01:13]} 38. Rc1 {[%emt 0:01:21]} Rd4 {[%emt 0:03:57]} 39. Ra5 {[%emt 0:01:33]} Nb4 {[%emt 0:00:34]} 40. Rc7 {[%emt 0:00:37]} e4 {[%emt 0:00:56]} 41. Rc4 {[%emt 0:01:34]} Rd1+ {[%emt 0:00:48]} 42. Kh2 {[%emt 0:00:01]} Nd3 {[%emt 0:00:06]} 43. Ra2 {[%emt 0:00:32]} Rf1 {[%emt 0:00:45]} 44. Rcc2 {[%emt 0:01:06]} Nb4 {[%emt 0:00:17]} 45. Kg3 {[%emt 0:00:40]} Nxa2 {[%emt 0:00:05]} 46. Rxa2 {[%emt 0:00:16]} Rc1 {[%emt 0:00:04]} 47. Na7 {[%emt 0:00:28]} Rc7 {[%emt 0:00:09]} 0-1

[Event "Marshall CC U2400 01-2025"]
[Site "New York"]
[Date "2025.01.18"]
[Round "1.8"]
[White "Chu, Leon"]
[Black "Paragua, Dominic Nathan"]
[Result "0-1"]
[Annotator "NA COMBH"]
[ECO "B90"]
[WhiteElo "1775"]
[BlackElo "1892"]
[PlyCount "96"]
[EventDate "2025.01.17"]
[EventType "swiss"]
[EventCountry "USA"]
[SourceTitle "playchess.com"]
[Source "ChessBase"]
[SourceQuality "1"]
[TimeControl "5400+30"]

1. e4 {[%emt 0:00:02]} c5 {[%emt 0:02:17]} 2. Nf3 {[%emt 0:00:17]} d6 {[%emt 0:00:02]} 3. d4 {[%emt 0:00:11]} cxd4 {[%emt 0:00:02]} 4. Nxd4 {[%emt 0:00:03]} Nf6 {[%emt 0:00:05]} 5. Nc3 {[%emt 0:00:23]} a6 {[%emt 0:00:03]} 6. f3 {[%emt 0:00:08]} e5 {[%emt 0:00:09]} 7. Nb3 {[%emt 0:00:04]} Be6 {[%emt 0:00:03]} 8. Be3 {[%emt 0:00:08]} Be7 {[%emt 0:00:03]} 9. Qd2 {[%emt 0:00:37]} O-O {[%emt 0:00:06]} 10. O-O-O {[%emt 0:00:37]} Nbd7 {[%emt 0:00:03]} 11. g4 {[%emt 0:01:52]} b5 {[%emt 0:00:06]} 12. a3 {[%emt 0:01:02] B90: Sicilian Najdorf: Unusual White 6th moves, 6 Be3 Ng4 and 6 Be3 e5.} Nb6 {[%emt 0:00:29]} 13. Na5 {[%emt 0:05:23]} Qc7 {[%emt 0:04:45]} 14. g5 {[%emt 0:05:25]} Nh5 {[%emt 0:02:20]} 15. h4 {[%emt 0:05:30]} Rfd8 {[%emt 0:17:01]} 16. Bh3 {[%emt 1:16:48]} Nf4 {[%emt 0:33:43]} 17. Bxe6 {[%emt 0:00:00]} fxe6 {[%emt 0:00:27]} 18. Bxf4 {[%emt 0:00:00]} exf4 {[%emt 0:00:20]} 19. Qxf4 {[%emt 0:00:00]} Na4 {[%emt 0:02:58]} 20. Nxa4 {[%emt 0:00:00]} bxa4 {[%emt 0:09:31]} 21. Qd2 {[%emt 0:00:00]} d5 {[%emt 0:00:47]} 22. exd5 {[%emt 0:00:00]} Rxd5 {[%emt 0:00:31]} 23. Qe1 {[%emt 0:00:00]} Re5 {[%emt 0:00:59]} 24. Qd2 {[%emt 0:00:00]} Rd8 {[%emt 0:04:16]} 25. Qf4 {[%emt 0:00:00]} Rc8 {[%emt 0:01:26]} 26. Qxa4 {[%emt 0:00:00]} Rxa5 {[%emt 0:00:48]} 27. Qb3 {[%emt 0:00:00]} Rc5 {[%emt 0:02:24]} (27... Rb5 $142 28. Qd3 Bxa3 29. bxa3 Rcb8) 28. Rd2 {[%emt 0:00:17]} Rc4 {[%emt 0:02:13]} 29. Rhd1 {[%emt 0:01:52]} Rb8 {[%emt 0:02:29]} ({Don't play} 29... Rxh4 30. Qxe6+ Kh8 31. Re1 $19) 30. Qd3 {[%emt 0:00:22] [#]} (30. Qe3 $142 Qc6 (30... Rxh4 $2 31. Qxe6+ Kh8 32. Qe3 $19) 31. Kb1) 30... Qb6 $1 {[%emt 0:06:21]} 31. c3 {[%emt 0:00:18]} Rbc8 {[%emt 0:03:09]} 32. Rc2 {[%emt 0:00:48]} R4c6 {[%emt 0:01:01]} ({Resist} 32... Rxh4 33. g6 $19) (32... Qb3 $142 33. Qe3 Rxh4) 33. b4 {[%emt 0:01:41]} (33. Qe4 $142) 33... a5 {[%emt 0:00:12]} 34. Rdd2 {[%emt 0:01:01]} Qc7 {[%emt 0:01:07]} 35. Kb2 {[%emt 0:00:14]} Bd6 $19 {[%emt 0:02:10]} (35... g6 $142 36. Kb1 Rc4 (36... Rxc3 $2 37. Qxc3 Qxc3 38. Rxc3 $19)) 36. Re2 $2 {[%emt 0:00:46]} (36. b5 Rb6 37. a4) 36... Be5 {[%emt 0:00:25]} 37. Re3 {[%emt 0:00:25]} axb4 {[%emt 0:00:27]} 38. axb4 {[%emt 0:00:11]} Rc4 {[%emt 0:00:24]} 39. Kb3 {[%emt 0:01:21]} Bd4 {[%emt 0:02:37]} 40. Rxe6 {[%emt 0:00:54]} Qf7 {[%emt 0:00:25]} 41. Qe2 {[%emt 0:00:59]} R4c6 {[%emt 0:01:02]} 42. cxd4 {[%emt 0:00:20]} Rxc2 {[%emt 0:00:15]} 43. Qe4 {[%emt 0:02:01]} R8c3+ {[%emt 0:00:34]} 44. Ka4 {[%emt 0:00:00]} Ra2+ {[%emt 0:00:04]} 45. Kb5 {[%emt 0:00:00]} Qd7+ {[%emt 0:00:02]} 46. Kb6 {[%emt 0:00:00]} Qa7+ {[%emt 0:00:18]} 47. Kb5 {[%emt 0:00:00]} Qa4+ {[%emt 0:00:01]} 48. Kb6 {[%emt 0:00:00] Check Result:?ev?} Qxb4# {[%emt 0:00:03]} 0-1

[Event "Marshall CC U2400 01-2025"]
[Site "New York"]
[Date "2025.01.18"]
[Round "1.9"]
[White "Tadevosyan, Levon"]
[Black "Alvarado-Yoshida, Nico"]
[Result "1-0"]
[Annotator "RC"]
[ECO "C01"]
[WhiteElo "1927"]
[BlackElo "1802"]
[PlyCount "43"]
[EventDate "2025.01.17"]
[EventType "swiss"]
[EventCountry "USA"]
[SourceTitle "playchess.com"]
[Source "ChessBase"]
[SourceQuality "1"]
[TimeControl "5400+30"]

1. e4 {[%emt 0:04:28]} e6 {[%emt 0:15:45]} 2. d4 {[%emt 0:00:20]} d5 {[%emt 0:00:03]} 3. exd5 {[%emt 0:00:54]} exd5 {[%emt 0:00:06]} 4. c4 {[%emt 0:00:33]} c6 {[%emt 0:01:42]} 5. Nc3 {[%emt 0:00:06]} Nf6 {[%emt 0:01:49]} 6. Nf3 {[%emt 0:00:17]} Be7 {[%emt 0:00:20]} 7. Bd3 {[%emt 0:00:20]} O-O {[%emt 0:00:14]} 8. O-O {[%emt 0:00:18]} Be6 {[%emt 0:00:34]} 9. c5 {[%emt 0:05:13]} Nbd7 {[%emt 0:03:14]} 10. Bf4 {[%emt 0:01:29]} Re8 {[%emt 0:02:24]} 11. h3 {[%emt 0:02:29]} Nf8 {[%emt 0:02:16]} 12. b4 {[%emt 0:01:28]} Ng6 {[%emt 0:02:16]} 13. Bh2 {[%emt 0:01:04]} b6 {[%emt 0:00:59]} 14. Ne5 {[%emt 0:02:41]} Nxe5 {[%emt 0:00:31]} 15. dxe5 {[%emt 0:00:53]} Nd7 {[%emt 0:00:39]} 16. f4 {[%emt 0:00:24]} d4 {[%emt 0:01:44]} 17. f5 {[%emt 0:08:30]} dxc3 {[%emt 0:04:40]} 18. fxe6 {[%emt 0:00:17]} fxe6 {[%emt 0:00:09]} 19. Qh5 {[%emt 0:00:34]} Nf8 {[%emt 0:07:38]} 20. Rxf8+ {[%emt 0:00:21]} Kxf8 {[%emt 0:00:03]} 21. Rf1+ {[%emt 0:00:05]} Bf6 {[%emt 0:00:08]} 22. exf6 {[%emt 0:00:07]} 1-0

[Event "Marshall CC U2400 01-2025"]
[Site "New York"]
[Date "2025.01.18"]
[Round "1.9"]
[White "Tadevosyan, Levon"]
[Black "Alvarado-Yoshida, Nico"]
[Result "*"]
[Annotator "NA RC"]
[ECO "C01"]
[WhiteElo "1927"]
[BlackElo "1802"]
[PlyCount "43"]
[EventDate "2025.01.17"]
[EventType "swiss"]
[EventCountry "USA"]
[SourceTitle "playchess.com"]
[Source "ChessBase"]
[SourceQuality "1"]
[TimeControl "5400+30"]

{[%evp 19,43,18,47,32767,46,47,39,36,97,21,16,-25,4,18,306,319,324,347,955,1247,32767,32767,32767,29993,29993,29994]} 1. e4 {[%emt 0:04:28]} e6 {[%emt 0:15:45]} 2. d4 {[%emt 0:00:20]} d5 {[%emt 0:00:03]} 3. exd5 {[%emt 0:00:54]} exd5 {[%emt 0:00:06]} 4. c4 {[%emt 0:00:33]} c6 {[%emt 0:01:42]} 5. Nc3 {[%emt 0:00:06]} Nf6 {[%emt 0:01:49]} 6. Nf3 {[%emt 0:00:17]} Be7 {[%emt 0:00:20]} 7. Bd3 {[%emt 0:00:20] 7.Bd3 scores better than 7.Be2.} O-O {[%emt 0:00:14]} 8. O-O {[%emt 0:00:18]} Be6 {[%emt 0:00:34] C01: French: Exchange Variation.} 9. c5 {[%emt 0:05:13]} Nbd7 {[%emt 0:03:14]} 10. Bf4 {[%emt 0:01:29]} (10. b4 $14) 10... Re8 {[%emt 0:02:24]} 11. h3 {[%emt 0:02:29]} Nf8 {[%emt 0:02:16]} 12. b4 {[%emt 0:01:28]} Ng6 {[%emt 0:02:16]} 13. Bh2 {[%emt 0:01:04]} b6 $146 {[%emt 0:00:59]} (13... Nh5 $14) ({Predecessor:} 13... Qc8 14. Re1 Bf5 15. a4 Bxd3 16. Qxd3 a6 17. Ra2 Bf8 18. Rxe8 Qxe8 19. Re2 Qc8 {1-0 Mar Gonzalez,F (2206)-Chan,S (1862) Internet Section 06B g/8'+2" blitz 2004 (3)}) 14. Ne5 {[%emt 0:02:41]} ({White should play} 14. Rc1 $16) 14... Nxe5 {[%emt 0:00:31]} 15. dxe5 {[%emt 0:00:53]} (15. Bxe5 $142 Nd7 16. Bg3) 15... Nd7 {[%emt 0:00:39]} 16. f4 {[%emt 0:00:24]} d4 $2 {[%emt 0:01:44]} (16... f5 $11 {and Black stays safe.}) 17. f5 $1 {[%emt 0:08:30]} dxc3 {[%emt 0:04:40]} 18. fxe6 {[%emt 0:00:17]} fxe6 $2 {[%emt 0:00:09] [#]} (18... Bxc5+ 19. bxc5 Rxe6 20. cxb6 Qxb6+ 21. Rf2 (21. Kh1 Nxe5 22. Bf5 Re7 $18) 21... Nxe5 22. Bxh7+ Kxh7) 19. Qh5 $1 {[%emt 0:00:34]} Nf8 {[%emt 0:07:38]} 20. Rxf8+ {[%emt 0:00:21]} Kxf8 {[%emt 0:00:03]} 21. Rf1+ {[%emt 0:00:05]} Bf6 {[%emt 0:00:08]} 22. exf6 {[%emt 0:00:07]} *

[Event "Marshall CC U2400 01-2025"]
[Site "New York"]
[Date "2025.01.18"]
[Round "1.10"]
[White "Zhang, Andrew"]
[Black "Nkululeko, Nkosi"]
[Result "0-1"]
[Annotator "RC"]
[ECO "C47"]
[WhiteElo "2041"]
[BlackElo "1970"]
[PlyCount "96"]
[EventDate "2025.01.17"]
[EventType "swiss"]
[EventCountry "USA"]
[SourceTitle "playchess.com"]
[Source "ChessBase"]
[SourceQuality "1"]
[TimeControl "5400+30"]

1. e4 {[%emt 0:00:02]} e5 {[%emt 0:01:58]} 2. Nf3 {[%emt 0:00:05]} Nf6 {[%emt 0:00:43]} 3. Nc3 {[%emt 0:00:09]} Nc6 {[%emt 0:00:07]} 4. d4 {[%emt 0:00:06]} exd4 {[%emt 0:00:17]} 5. Nxd4 {[%emt 0:00:06]} Bb4 {[%emt 0:00:20]} 6. Nxc6 {[%emt 0:00:12]} bxc6 {[%emt 0:00:03]} 7. Bd3 {[%emt 0:00:07]} d5 {[%emt 0:00:49]} 8. exd5 {[%emt 0:00:07]} cxd5 {[%emt 0:00:08]} 9. O-O {[%emt 0:00:09]} O-O {[%emt 0:00:23]} 10. Bf4 {[%emt 0:00:25]} Bg4 {[%emt 0:02:01]} 11. f3 {[%emt 0:01:17]} Bh5 {[%emt 0:00:45]} 12. a3 {[%emt 0:01:03]} Bd6 {[%emt 0:03:15]} 13. Qd2 {[%emt 0:01:27]} c6 {[%emt 0:01:01]} 14. Ne2 {[%emt 0:02:52]} Re8 {[%emt 0:01:27]} 15. Rfe1 {[%emt 0:01:29]} Qb6+ {[%emt 0:06:21]} 16. Kh1 {[%emt 0:00:42]} Bxf4 {[%emt 0:01:15]} 17. Nxf4 {[%emt 0:07:11]} Qxb2 {[%emt 0:00:27]} 18. Nxh5 {[%emt 0:04:51]} Nxh5 {[%emt 0:00:03]} 19. Qg5 {[%emt 0:00:56]} Nf6 {[%emt 0:01:27]} 20. Qg3 {[%emt 0:07:16]} Rxe1+ {[%emt 0:03:08]} 21. Rxe1 {[%emt 0:00:35]} Qxa3 {[%emt 0:00:42]} 22. h3 {[%emt 0:07:02]} Qb4 {[%emt 0:01:39]} 23. Re5 {[%emt 0:04:08]} a5 {[%emt 0:00:46]} 24. Rf5 {[%emt 0:02:28]} Kf8 {[%emt 0:01:43]} 25. Qc7 {[%emt 0:03:57]} Qb1+ {[%emt 0:00:18]} 26. Kh2 {[%emt 0:00:49]} Qb8 {[%emt 0:00:08]} 27. Qxb8+ {[%emt 0:00:14]} Rxb8 {[%emt 0:00:01]} 28. Rf4 {[%emt 0:00:31]} Rb4 {[%emt 0:00:10]} 29. Rxb4 {[%emt 0:00:18]} axb4 {[%emt 0:00:02]} 30. Kg3 {[%emt 0:00:08]} Ke7 {[%emt 0:00:53]} 31. Kf4 {[%emt 0:00:20]} Kd6 {[%emt 0:00:24]} 32. g4 {[%emt 0:00:28]} h6 {[%emt 0:00:11]} 33. h4 {[%emt 0:00:07]} c5 {[%emt 0:01:06]} 34. g5 {[%emt 0:00:54]} hxg5+ {[%emt 0:00:03]} 35. hxg5 {[%emt 0:00:06]} Nh5+ {[%emt 0:00:45]} 36. Kg4 {[%emt 0:00:33]} c4 {[%emt 0:00:39]} 37. Bf1 {[%emt 0:01:00]} g6 {[%emt 0:00:08]} 38. f4 {[%emt 0:00:19]} Ng7 {[%emt 0:00:39]} 39. Kf3 {[%emt 0:00:28]} Kc5 {[%emt 0:00:07]} 40. Ke3 {[%emt 0:01:01]} Nf5+ {[%emt 0:00:02]} 41. Kd2 {[%emt 0:00:18]} Kd4 {[%emt 0:00:02]} 42. Bg2 {[%emt 0:00:32]} Ng7 {[%emt 0:00:19]} 43. Bh3 {[%emt 0:00:52]} Ne6 {[%emt 0:00:05]} 44. f5 {[%emt 0:00:28]} Nxg5 {[%emt 0:00:22]} 45. fxg6 {[%emt 0:00:04]} Ne4+ {[%emt 0:00:14]} 46. Kc1 {[%emt 0:00:12]} fxg6 {[%emt 0:00:06]} 47. Bg4 {[%emt 0:00:09]} Nf2 {[%emt 0:00:29]} 48. Be6 {[%emt 0:00:23]} g5 {[%emt 0:00:22]} 0-1

[Event "Marshall CC U2400 01-2025"]
[Site "New York"]
[Date "2025.01.18"]
[Round "1.11"]
[White "Baker, Aidan"]
[Black "Romano Grobeisen, Elias"]
[Result "1-0"]
[Annotator "NA RC"]
[ECO "B22"]
[WhiteElo "1975"]
[BlackElo "1835"]
[PlyCount "107"]
[EventDate "2025.01.17"]
[EventType "swiss"]
[EventCountry "USA"]
[SourceTitle "playchess.com"]
[Source "ChessBase"]
[SourceQuality "1"]
[TimeControl "5400+30"]

1. e4 {[%emt 0:00:02]} c5 {[%emt 0:01:47]} 2. c3 {[%emt 0:00:25]} d5 {[%emt 0:00:34]} 3. exd5 {[%emt 0:00:25]} Qxd5 {[%emt 0:02:49]} 4. d4 {[%emt 0:00:13]} Nf6 {[%emt 0:01:44]} 5. Nf3 {[%emt 0:00:51]} Bg4 {[%emt 0:11:21]} 6. Be2 {[%emt 0:00:49]} e6 {[%emt 0:00:40]} 7. O-O {[%emt 0:01:11]} Nc6 {[%emt 0:01:51]} 8. Be3 {[%emt 1:30:34]} cxd4 {[%emt 0:10:54]} 9. cxd4 {[%emt 0:00:00]} a6 {[%emt 0:06:16] B22: Sicilian: 2 c3.} (9... Be7 $142) 10. Nc3 {[%emt 0:00:00]} Qd8 {[%emt 0:02:03]} 11. Qb3 {[%emt 0:00:00]} Rb8 {[%emt 0:03:51]} (11... Bd6 $11) 12. Rad1 {[%emt 0:00:00]} Nd5 {[%emt 0:04:59]} (12... Be7 $1 $14) 13. Nxd5 {[%emt 0:00:00]} exd5 {[%emt 0:08:42]} 14. Rfe1 {[%emt 0:00:00]} (14. Bf4 $18 {and White stays clearly on top.}) 14... Bb4 {[%emt 0:06:39]} 15. Bg5 {[%emt 0:00:00]} Qd6 {[%emt 0:08:58]} 16. Nd2 {[%emt 0:00:00]} Be6 {[%emt 0:01:10]} 17. Qe3 {[%emt 0:00:00]} Rc8 {[%emt 0:03:47]} 18. Bf4 {[%emt 0:00:00]} Qd7 {[%emt 0:00:55]} 19. a3 {[%emt 0:00:00]} Bd6 {[%emt 0:05:20]} 20. Nb3 {[%emt 0:00:00]} O-O {[%emt 0:04:30]} 21. Nc5 {[%emt 0:00:00]} Bxc5 {[%emt 0:00:27]} 22. dxc5 {[%emt 0:00:00]} Rfe8 {[%emt 0:02:07]} 23. Qd2 {[%emt 0:00:00]} h6 {[%emt 0:00:23]} 24. h3 {[%emt 0:00:00]} Ne7 {[%emt 0:02:42]} 25. b4 {[%emt 0:00:00]} Red8 {[%emt 0:00:57]} 26. Bf3 {[%emt 0:00:00]} Qa4 {[%emt 0:00:58]} 27. Bd6 {[%emt 0:00:00]} Nf5 {[%emt 0:04:08]} 28. Bxd5 {[%emt 0:00:00]} Bxd5 {[%emt 0:00:55]} 29. Qxd5 {[%emt 0:00:00]} Nxd6 {[%emt 0:00:16]} 30. cxd6 {[%emt 0:00:00]} Rd7 {[%emt 0:01:51] [#]} 31. Re7 $1 {[%emt 0:00:00]} Rf8 {[%emt 0:00:58]} 32. Rd3 {[%emt 0:00:00]} Rdd8 {[%emt 0:01:13]} 33. Rf3 {[%emt 0:00:00]} Qc6 {[%emt 0:00:41]} 34. Qxc6 {[%emt 0:00:00]} (34. Rfxf7 $142 Qc1+ 35. Kh2) 34... bxc6 {[%emt 0:00:04]} 35. d7 {[%emt 0:00:00]} f6 {[%emt 0:00:15]} (35... g5 $142 36. Rf6 Kh7 37. Rxc6 a5) 36. Rc3 {[%emt 0:00:00]} (36. Rfe3 $142) 36... a5 $2 {[%emt 0:00:43]} (36... Rf7 $18 37. Re8+ Rf8 38. Rxd8 (38. Rxc6 Rdxe8 39. dxe8=N Rxe8 $18) 38... Rxd8 39. Rxc6 Rxd7 40. Rxa6 Rd1+ 41. Kh2 Rb1) 37. Rxc6 {[%emt 0:00:00]} axb4 {[%emt 0:00:16]} 38. axb4 {[%emt 0:00:00]} Rb8 {[%emt 0:00:51]} 39. Rce6 {[%emt 0:00:00]} Rfd8 {[%emt 0:00:44]} 40. Re8+ {[%emt 0:00:00]} (40. b5 $142 f5 41. Re8+ Kf7 42. R6e7+ Kg6 43. Re6+ Kf7) 40... Kf7 $18 {[%emt 0:00:19]} 41. R6e7+ {[%emt 0:00:00]} Kg6 {[%emt 0:00:15]} 42. Rxd8 {[%emt 0:00:00]} Rxd8 {[%emt 0:00:07]} 43. b5 {[%emt 0:00:00]} f5 {[%emt 0:00:06]} 44. Re6+ {[%emt 0:00:00]} Kf7 {[%emt 0:00:12]} 45. Rd6 {[%emt 0:00:00]} Ke7 {[%emt 0:00:08]} 46. Rd3 {[%emt 0:00:00]} Rb8 {[%emt 0:00:37]} 47. Kf1 {[%emt 0:00:00]} Kd8 {[%emt 0:00:15]} 48. Rd5 {[%emt 0:00:00]} f4 {[%emt 0:01:56]} 49. Ke2 {[%emt 0:00:00]} Rb6 {[%emt 0:00:08]} 50. Kf3 {[%emt 0:00:00]} Rf6 {[%emt 0:00:34]} 51. h4 {[%emt 0:00:00]} g6 {[%emt 0:00:53]} 52. Kg4 {[%emt 0:00:00]} h5+ {[%emt 0:01:05]} 53. Kg5 {[%emt 0:00:00]} Rb6 {[%emt 0:00:12]} 54. Kxf4 {[%emt 0:00:00]} 1-0

[Event "Marshall CC U2400 01-2025"]
[Site "New York"]
[Date "2025.01.18"]
[Round "1.12"]
[White "Nakada, Johji David"]
[Black "Le, Quan Anh"]
[Result "0-1"]
[Annotator "RC"]
[ECO "D00"]
[WhiteElo "1693"]
[BlackElo "2107"]
[PlyCount "54"]
[EventDate "2025.01.17"]
[EventType "swiss"]
[EventCountry "USA"]
[SourceTitle "playchess.com"]
[Source "ChessBase"]
[SourceQuality "1"]
[TimeControl "5400+30"]

1. d4 {[%emt 0:02:15]} Nf6 {[%emt 0:03:26]} 2. Bg5 {[%emt 0:00:08]} d5 {[%emt 0:03:49]} 3. Bxf6 {[%emt 0:00:10]} gxf6 {[%emt 0:00:17]} 4. g3 {[%emt 0:00:13]} e5 {[%emt 0:02:35]} 5. e3 {[%emt 0:02:07]} Bg7 {[%emt 0:01:23]} 6. Bg2 {[%emt 0:00:22]} c6 {[%emt 0:00:35]} 7. Ne2 {[%emt 0:00:28]} Be6 {[%emt 0:04:31]} 8. Nd2 {[%emt 0:03:25]} O-O {[%emt 0:01:28]} 9. b3 {[%emt 0:01:31]} Qd7 {[%emt 0:01:38]} 10. c4 {[%emt 0:06:51]} Bh3 {[%emt 0:02:28]} 11. O-O {[%emt 0:00:42]} Na6 {[%emt 0:03:38]} 12. c5 {[%emt 0:06:03]} b6 {[%emt 0:07:58]} 13. Bxh3 {[%emt 0:02:02]} Qxh3 {[%emt 0:00:07]} 14. b4 {[%emt 0:00:14]} Nxb4 {[%emt 0:01:22]} 15. Qa4 {[%emt 0:00:12]} bxc5 {[%emt 0:03:04]} 16. dxc5 {[%emt 0:00:14]} Nd3 {[%emt 0:16:03]} 17. Qxc6 {[%emt 0:04:08]} Rfd8 {[%emt 0:00:08]} 18. Qb5 {[%emt 0:02:24]} e4 {[%emt 0:01:40]} 19. Rab1 {[%emt 0:03:36]} Rac8 {[%emt 0:01:24]} 20. c6 {[%emt 0:06:01]} Rd6 {[%emt 0:01:54]} 21. Nd4 {[%emt 0:00:58]} f5 {[%emt 0:00:56]} 22. c7 {[%emt 0:05:08]} Bxd4 {[%emt 0:03:05]} 23. Qb8 {[%emt 0:01:44]} Rh6 {[%emt 0:00:04]} 24. Qxc8+ {[%emt 0:03:45]} Kg7 {[%emt 0:00:01]} 25. Qh8+ {[%emt 0:00:20]} Kxh8 {[%emt 0:00:02]} 26. Rb8+ {[%emt 0:00:00]} Kg7 {[%emt 0:00:02]} 27. c8=Q {[%emt 0:00:01]} Qxh2# {[%emt 0:40:22]} 0-1